[Event "Mitropa Online Cup Women 2021"]
[Site "Hybrid"]
[Date "2021.05.04"]
[Round "1.3"]
[White "Janzelj, Lara"]
[Black "Sankova, Stella"]
[Result "0-1"]
[ECO "E25"]
[WhiteElo "2212"]
[BlackElo "2087"]
[Annotator "NA"]
[PlyCount "80"]
[EventDate "2021.05.04"]
[EventType "team-tourn"]
[EventCountry "NET"]
[SourceTitle "playchess.com"]
[Source "ChessBase"]
[SourceQuality "1"]
[WhiteTeam "Slovenia"]
[BlackTeam "Slovakia"]
[WhiteTeamCountry "SLO"]
[BlackTeamCountry "SVK"]
[TimeControl "40/5400+30:1800+30"]

1. d4 {[%emt 0:00:00]} Nf6 {[%emt 0:00:16]} 2. c4 {[%emt 0:00:34]} e6 {[%emt 0:00:09]} 3. Nc3 {[%emt 0:00:20]} Bb4 {[%emt 0:00:36]} 4. f3 {[%emt 0:00:39]} d5 {[%emt 0:01:37]} 5. a3 {[%emt 0:00:33]} Bxc3+ {[%emt 0:00:36]} 6. bxc3 {[%emt 0:00:09]} c5 {[%emt 0:03:58]} 7. cxd5 {[%emt 0:01:11]} exd5 {[%emt 0:01:56]} 8. e3 {[%emt 0:00:38]} Bf5 {[%emt 0:05:03]} 9. Ne2 {[%emt 0:13:07]} Nc6 {[%emt 0:03:32]} 10. g4 {[%emt 0:22:29]} Be6 {[%emt 0:09:47]} 11. Bg2 {[%emt 0:02:47]} Rc8 {[%emt 0:12:46]} 12. O-O {[%emt 0:05:21]} O-O {[%emt 0:02:27]} 13. Nf4 {[%emt 0:21:56]} Na5 {[%emt 0:07:44]} 14. Nd3 {[%emt 0:04:11]} b6 {[%emt 0:07:36]} 15. a4 {[%emt 0:04:45]} Re8 {[%emt 0:05:38]} 16. Nf2 {[%emt 0:03:44]} cxd4 {[%emt 0:10:39]} 17. cxd4 {[%emt 0:00:44]} Re7 {[%emt 0:02:00]} 18. f4 {[%emt 0:08:02]} Rc6 {[%emt 0:06:03]} 19. f5 {[%emt 0:01:04]} Bc8 {[%emt 0:00:32]} 20. g5 {[%emt 0:04:13]} Ne8 {[%emt 0:03:06]} 21. Nd3 {[%emt 0:01:38]} Nc4 {[%emt 0:05:18]} 22. Qf3 {[%emt 0:00:26]} Rd6 {[%emt 0:04:13]} 23. Nf4 {[%emt 0:00:21]} Nc7 {[%emt 0:03:25]} 24. f6 {[%emt 0:00:27]} gxf6 {[%emt 0:01:17]} 25. Nh5 {[%emt 0:01:04]} fxg5 {[%emt 0:00:28]} 26. Nf6+ {[%emt 0:00:11]} Kg7 {[%emt 0:00:50]} 27. e4 {[%emt 0:01:56]} dxe4 {[%emt 0:00:26]} 28. Qh5 {[%emt 0:00:36]} Rxf6 {[%emt 0:00:32]} 29. Rxf6 {[%emt 0:00:04]} Qxd4+ {[%emt 0:00:34]} 30. Rf2 {[%emt 0:00:05]} Qxa1 {[%emt 0:00:15]} 31. Qxg5+ {[%emt 0:01:20]} Kf8 {[%emt 0:00:21]} 32. Qh6+ {[%emt 0:00:46]} Qg7 {[%emt 0:00:45]} 33. Qc6 {[%emt 0:00:13]} Ne5 {[%emt 0:00:41]} 34. Qd6 {[%emt 0:00:22]} Ne8 {[%emt 0:00:54]} 35. Qd8 {[%emt 0:00:38]} Bh3 {[%emt 0:00:44]} 36. Ba3 {[%emt 0:00:20]} Nf3+ {[%emt 0:00:19]} 37. Kf1 {[%emt 0:00:37]} Bxg2+ {[%emt 0:00:28]} 38. Ke2 {[%emt 0:00:20]} Ng1+ {[%emt 0:00:29]} 39. Kd1 {[%emt 0:00:40]} Qa1+ {[%emt 0:00:17]} 40. Bc1 {[%emt 0:00:00]} Bf3+ {[%emt 0:00:00]} 0-1

[Event "Mitropa Online Cup Women 2021"]
[Site "Hybrid"]
[Date "2021.05.04"]
[Round "1.3"]
[White "Rozman, Monika"]
[Black "Taragelova, Martina"]
[Result "1/2-1/2"]
[ECO "C54"]
[WhiteElo "2175"]
[BlackElo "2010"]
[Annotator "NA"]
[PlyCount "93"]
[EventDate "2021.05.04"]
[EventType "team-tourn"]
[EventCountry "NET"]
[SourceTitle "playchess.com"]
[Source "ChessBase"]
[SourceQuality "1"]
[WhiteTeam "Slovenia"]
[BlackTeam "Slovakia"]
[WhiteTeamCountry "SLO"]
[BlackTeamCountry "SVK"]
[TimeControl "40/5400+30:1800+30"]

1. e4 {[%emt 0:00:00]} e5 {[%emt 0:00:19]} 2. Nf3 {[%emt 0:00:05]} Nc6 {[%emt 0:00:10]} 3. Bc4 {[%emt 0:00:06]} Bc5 {[%emt 0:00:17]} 4. c3 {[%emt 0:00:06]} Nf6 {[%emt 0:00:14]} 5. d3 {[%emt 0:00:07]} d6 {[%emt 0:00:31]} 6. O-O {[%emt 0:00:44]} O-O {[%emt 0:00:24]} 7. Bb3 {[%emt 0:00:25]} a5 {[%emt 0:01:00]} 8. Nbd2 {[%emt 0:01:23]} Ba7 {[%emt 0:03:03]} 9. Nc4 {[%emt 0:05:49]} h6 {[%emt 0:02:33]} 10. Re1 {[%emt 0:02:13]} Re8 {[%emt 0:04:37]} 11. Ne3 {[%emt 0:04:07]} Ne7 {[%emt 0:06:12]} 12. Nh4 {[%emt 0:05:09]} c6 {[%emt 0:02:49]} 13. Qf3 {[%emt 0:02:55]} d5 {[%emt 0:05:38]} 14. exd5 {[%emt 0:09:20]} cxd5 {[%emt 0:02:06]} 15. Ba4 {[%emt 0:10:33]} e4 {[%emt 0:07:13]} 16. dxe4 {[%emt 0:07:29]} dxe4 {[%emt 0:01:53]} 17. Qe2 {[%emt 0:01:32]} Nc6 {[%emt 0:07:16]} 18. Rd1 {[%emt 0:08:09]} Qc7 {[%emt 0:01:57]} 19. Nhf5 {[%emt 0:01:08]} Bxe3 {[%emt 0:02:43]} 20. Nxe3 {[%emt 0:00:19]} Be6 {[%emt 0:00:50]} 21. Bd2 {[%emt 0:01:16]} Red8 {[%emt 0:02:22]} 22. Be1 {[%emt 0:00:34]} Ne5 {[%emt 0:03:40]} 23. h3 {[%emt 0:03:30]} Bxh3 {[%emt 0:07:58]} 24. Rxd8+ {[%emt 0:06:30]} Rxd8 {[%emt 0:00:54]} 25. Rd1 {[%emt 0:00:50]} Rxd1 {[%emt 0:03:43]} 26. Qxd1 {[%emt 0:04:20]} Be6 {[%emt 0:02:47]} 27. Bb5 {[%emt 0:07:09]} Neg4 {[%emt 0:10:56]} 28. Nf1 {[%emt 0:03:38]} Nd5 {[%emt 0:09:47]} 29. Qd4 {[%emt 0:06:00]} Qe5 {[%emt 0:03:09]} 30. Qxe5 {[%emt 0:02:26]} Nxe5 {[%emt 0:00:08]} 31. c4 {[%emt 0:03:06]} Nc7 {[%emt 0:01:52]} 32. Ng3 {[%emt 0:01:30]} Nxb5 {[%emt 0:02:49]} 33. cxb5 {[%emt 0:00:03]} Bxa2 {[%emt 0:00:53]} 34. Nxe4 {[%emt 0:00:03]} Bd5 {[%emt 0:01:44]} 35. Nd6 {[%emt 0:00:53]} Nc4 {[%emt 0:02:02]} 36. Nxc4 {[%emt 0:00:09]} Bxc4 {[%emt 0:00:06]} 37. Bxa5 {[%emt 0:00:02]} Bxb5 {[%emt 0:00:09]} 38. f3 {[%emt 0:00:08]} Kf8 {[%emt 0:00:40]} 39. Bc3 {[%emt 0:00:14]} f6 {[%emt 0:00:45]} 40. Kf2 {[%emt 0:00:00]} Kf7 {[%emt 0:00:00]} 41. g4 {[%emt 0:01:15]} Ke6 {[%emt 0:03:55]} 42. Ke3 {[%emt 0:00:57]} g6 {[%emt 0:01:54]} 43. Kf4 {[%emt 0:02:19]} Bd3 {[%emt 0:02:08]} 44. Kg3 {[%emt 0:01:26]} f5 {[%emt 0:03:32]} 45. Bg7 {[%emt 0:01:25]} h5 {[%emt 0:02:36]} 46. gxh5 {[%emt 0:00:14]} gxh5 {[%emt 0:00:09]} 47. f4 {[%emt 0:01:03]} 1/2-1/2

[Event "Mitropa Online Cup Women 2021"]
[Site "Hybrid"]
[Date "2021.05.04"]
[Round "1.3"]
[White "Ferkova, Dominika"]
[Black "Hrescak, Ivana"]
[Result "1-0"]
[ECO "E81"]
[WhiteElo "2006"]
[BlackElo "2201"]
[Annotator "NA"]
[PlyCount "161"]
[EventDate "2021.05.04"]
[EventType "team-tourn"]
[EventCountry "NET"]
[SourceTitle "playchess.com"]
[Source "ChessBase"]
[SourceQuality "1"]
[WhiteTeam "Slovakia"]
[BlackTeam "Slovenia"]
[WhiteTeamCountry "SVK"]
[BlackTeamCountry "SLO"]
[TimeControl "40/5400+30:1800+30"]

1. d4 {[%emt 0:00:00]} Nf6 {[%emt 0:00:12]} 2. c4 {[%emt 0:00:08]} g6 {[%emt 0:00:09]} 3. Nc3 {[%emt 0:00:09]} Bg7 {[%emt 0:00:10]} 4. e4 {[%emt 0:00:16]} d6 {[%emt 0:00:14]} 5. f3 {[%emt 0:00:09]} O-O {[%emt 0:00:17]} 6. Be3 {[%emt 0:00:08]} c5 {[%emt 0:00:17]} 7. Nge2 {[%emt 0:00:07]} Qa5 {[%emt 0:02:43]} 8. Qd2 {[%emt 0:00:18]} Nc6 {[%emt 0:00:35]} 9. d5 {[%emt 0:00:20]} Ne5 {[%emt 0:00:20]} 10. Nc1 {[%emt 0:00:10]} a6 {[%emt 0:02:40]} 11. Be2 {[%emt 0:00:34]} Rb8 {[%emt 0:03:31]} 12. a4 {[%emt 0:03:43]} Rd8 {[%emt 0:04:28]} 13. h3 {[%emt 0:10:20]} Nh5 {[%emt 0:11:06]} 14. Kf2 {[%emt 0:16:17]} Nf6 {[%emt 0:10:27]} 15. N1a2 {[%emt 0:11:21]} Qc7 {[%emt 0:06:01]} 16. f4 {[%emt 0:07:15]} Ned7 {[%emt 0:02:15]} 17. g4 {[%emt 0:02:06]} Nf8 {[%emt 0:09:28]} 18. g5 {[%emt 0:08:41]} Ne8 {[%emt 0:02:18]} 19. Bd3 {[%emt 0:04:05]} e6 {[%emt 0:03:15]} 20. h4 {[%emt 0:04:46]} Qe7 {[%emt 0:07:12]} 21. Rae1 {[%emt 0:04:15]} Nc7 {[%emt 0:05:05]} 22. f5 {[%emt 0:06:44]} exf5 {[%emt 0:09:14]} 23. exf5 {[%emt 0:00:24]} Bxf5 {[%emt 0:00:52]} 24. Bxf5 {[%emt 0:02:29]} gxf5 {[%emt 0:00:09]} 25. Bxc5 {[%emt 0:02:04]} Qd7 {[%emt 0:02:15]} 26. Bd4 {[%emt 0:01:22]} Bxd4+ {[%emt 0:05:05]} 27. Qxd4 {[%emt 0:00:07]} Ng6 {[%emt 0:00:36]} 28. Nb4 {[%emt 0:03:18]} Re8 {[%emt 0:01:29]} 29. h5 {[%emt 0:02:04]} Ne5 {[%emt 0:01:09]} 30. Nd3 {[%emt 0:00:46]} Nxd3+ {[%emt 0:04:52]} 31. Qxd3 {[%emt 0:00:06]} Rxe1 {[%emt 0:01:00]} 32. Rxe1 {[%emt 0:01:23]} Re8 {[%emt 0:00:34]} 33. Rxe8+ {[%emt 0:04:53]} Nxe8 {[%emt 0:00:06]} 34. b3 {[%emt 0:00:52]} f6 {[%emt 0:01:00]} 35. Qg3 {[%emt 0:02:16]} Qg7 {[%emt 0:00:24]} 36. gxf6 {[%emt 0:00:35]} Nxf6 {[%emt 0:00:32]} 37. Qxg7+ {[%emt 0:00:53]} Kxg7 {[%emt 0:00:09]} 38. b4 {[%emt 0:01:17]} b6 {[%emt 0:02:32]} 39. Kf3 {[%emt 0:01:00]} Nd7 {[%emt 0:02:00]} 40. Kf4 {[%emt 0:00:00]} Kf6 {[%emt 0:00:00]} 41. Nd1 {[%emt 0:15:01]} Ne5 {[%emt 0:08:34]} 42. Nb2 {[%emt 0:01:01]} a5 {[%emt 0:03:34]} 43. bxa5 {[%emt 0:10:15]} bxa5 {[%emt 0:00:10]} 44. h6 {[%emt 0:03:33]} Nd7 {[%emt 0:09:37]} 45. Nd1 {[%emt 0:00:30]} Nb6 {[%emt 0:09:40]} 46. Ne3 {[%emt 0:00:29]} Kg6 {[%emt 0:00:58]} 47. c5 {[%emt 0:01:46]} dxc5 {[%emt 0:00:28]} 48. Ke5 {[%emt 0:00:25]} Kg5 {[%emt 0:01:24]} 49. d6 {[%emt 0:01:52]} f4 {[%emt 0:00:51]} 50. Nd5 {[%emt 0:00:12]} Nc4+ {[%emt 0:01:01]} 51. Ke6 {[%emt 0:00:04]} Nxd6 {[%emt 0:00:49]} 52. Kxd6 {[%emt 0:00:02]} c4 {[%emt 0:01:03]} 53. Ke5 {[%emt 0:00:10]} f3 {[%emt 0:00:37]} 54. Ne3 {[%emt 0:01:58]} c3 {[%emt 0:00:43]} 55. Ke4 {[%emt 0:00:26]} f2 {[%emt 0:00:30]} 56. Kd3 {[%emt 0:00:03]} Kxh6 {[%emt 0:00:42]} 57. Kxc3 {[%emt 0:00:03]} Kg5 {[%emt 0:00:07]} 58. Kd2 {[%emt 0:00:03]} Kf4 {[%emt 0:00:35]} 59. Ke2 {[%emt 0:00:03]} Ke4 {[%emt 0:00:41]} 60. Nc4 {[%emt 0:00:03]} Kd4 {[%emt 0:00:38]} 61. Nxa5 {[%emt 0:00:03]} Kc5 {[%emt 0:00:09]} 62. Nb3+ {[%emt 0:00:03]} Kb4 {[%emt 0:00:48]} 63. a5 {[%emt 0:00:02]} Kb5 {[%emt 0:00:18]} 64. Kxf2 {[%emt 0:00:02]} Ka6 {[%emt 0:00:44]} 65. Kg3 {[%emt 0:00:07]} Kb5 {[%emt 0:00:29]} 66. Kh4 {[%emt 0:02:22]} Kc6 {[%emt 0:00:21]} 67. Kh5 {[%emt 0:00:03]} Kc7 {[%emt 0:00:09]} 68. Kh6 {[%emt 0:00:02]} Kc6 {[%emt 0:00:22]} 69. Kxh7 {[%emt 0:00:03]} Kc7 {[%emt 0:00:16]} 70. Kg6 {[%emt 0:00:02]} Kc6 {[%emt 0:00:07]} 71. Kf5 {[%emt 0:00:03]} Kb5 {[%emt 0:00:16]} 72. Kf6 {[%emt 0:00:21]} Kc6 {[%emt 0:00:08]} 73. Ke6 {[%emt 0:00:02]} Kc7 {[%emt 0:00:07]} 74. Kd5 {[%emt 0:00:05]} Kb7 {[%emt 0:00:05]} 75. Kd6 {[%emt 0:00:04]} Ka6 {[%emt 0:00:09]} 76. Kc6 {[%emt 0:00:03]} Ka7 {[%emt 0:00:03]} 77. Nc5 {[%emt 0:00:03]} Kb8 {[%emt 0:00:33]} 78. Kb6 {[%emt 0:00:01]} Ka8 {[%emt 0:00:01]} 79. Ne6 {[%emt 0:00:04]} Kb8 {[%emt 0:00:04]} 80. Nc7 {[%emt 0:00:02]} Kc8 {[%emt 0:00:07]} 81. a6 {[%emt 0:00:03]} 1-0

[Event "Mitropa Online Cup Women 2021"]
[Site "Hybrid"]
[Date "2021.05.04"]
[Round "1.3"]
[White "Kovarikova, Maria"]
[Black "Hercog, Nusa"]
[Result "0-1"]
[ECO "B44"]
[WhiteElo "1899"]
[BlackElo "2088"]
[Annotator "NA"]
[PlyCount "48"]
[EventDate "2021.05.04"]
[EventType "team-tourn"]
[EventCountry "NET"]
[SourceTitle "playchess.com"]
[Source "ChessBase"]
[SourceQuality "1"]
[WhiteTeam "Slovakia"]
[BlackTeam "Slovenia"]
[WhiteTeamCountry "SVK"]
[BlackTeamCountry "SLO"]
[TimeControl "40/5400+30:1800+30"]

1. e4 {[%emt 0:00:00]} c5 {[%emt 0:00:16]} 2. Nf3 {[%emt 0:00:21]} Nc6 {[%emt 0:00:37]} 3. d4 {[%emt 0:00:38]} cxd4 {[%emt 0:00:14]} 4. Nxd4 {[%emt 0:00:31]} e6 {[%emt 0:00:33]} 5. c4 {[%emt 0:01:11]} Nf6 {[%emt 0:06:00]} 6. Nc3 {[%emt 0:03:42]} Bb4 {[%emt 0:02:19]} 7. Nxc6 {[%emt 0:05:32]} bxc6 {[%emt 0:00:19]} 8. Bd3 {[%emt 0:05:51]} e5 {[%emt 0:01:16]} 9. O-O {[%emt 0:02:48]} d6 {[%emt 0:02:01]} 10. Bg5 {[%emt 0:09:39]} Bc5 {[%emt 0:08:59]} 11. Bc2 {[%emt 0:04:48]} h6 {[%emt 0:08:18]} 12. Bh4 {[%emt 0:02:52]} g5 {[%emt 0:08:57]} 13. Bg3 {[%emt 0:01:44]} h5 {[%emt 0:02:26]} 14. Ba4 {[%emt 0:12:31]} Bd7 {[%emt 0:08:29]} 15. h4 {[%emt 0:05:46]} Ng4 {[%emt 0:05:35]} 16. a3 {[%emt 0:03:55]} gxh4 {[%emt 0:02:44]} 17. Bh2 {[%emt 0:00:47]} Qg5 {[%emt 0:09:24]} 18. Ne2 {[%emt 0:07:47]} Rg8 {[%emt 0:03:20]} 19. g3 {[%emt 0:00:42]} hxg3 {[%emt 0:02:30]} 20. Nxg3 {[%emt 0:01:31]} h4 {[%emt 0:00:25]} 21. Qc1 {[%emt 0:02:11]} hxg3 {[%emt 0:03:04]} 22. Bxg3 {[%emt 0:00:19]} Nxf2 {[%emt 0:02:19]} 23. Qxg5 {[%emt 0:00:53]} Rxg5 {[%emt 0:02:11]} 24. Rxf2 {[%emt 0:00:35]} Rxg3+ {[%emt 0:00:10]} 0-1

[Event "Mitropa Online Cup Women 2021"]
[Site "Hybrid"]
[Date "2021.05.04"]
[Round "1.4"]
[White "Brunello, Marina"]
[Black "Terbe, Julianna"]
[Result "1-0"]
[ECO "B33"]
[WhiteElo "2367"]
[BlackElo "2267"]
[Annotator "NA"]
[PlyCount "67"]
[EventDate "2021.05.04"]
[EventType "team-tourn"]
[EventCountry "NET"]
[SourceTitle "playchess.com"]
[Source "ChessBase"]
[SourceQuality "1"]
[WhiteTeam "Italy"]
[BlackTeam "Hungary"]
[WhiteTeamCountry "ITA"]
[BlackTeamCountry "HUN"]
[TimeControl "40/5400+30:1800+30"]

1. e4 {[%emt 0:00:00]} c5 {[%emt 0:00:07]} 2. Nf3 {[%emt 0:00:31]} Nc6 {[%emt 0:00:08]} 3. d4 {[%emt 0:00:55]} cxd4 {[%emt 0:00:05]} 4. Nxd4 {[%emt 0:00:06]} Nf6 {[%emt 0:00:07]} 5. Nc3 {[%emt 0:00:19]} e5 {[%emt 0:00:06]} 6. Ndb5 {[%emt 0:00:09]} d6 {[%emt 0:00:07]} 7. Bg5 {[%emt 0:00:10]} a6 {[%emt 0:00:07]} 8. Na3 {[%emt 0:00:03]} b5 {[%emt 0:00:05]} 9. Nd5 {[%emt 0:00:04]} Be7 {[%emt 0:00:06]} 10. Bxf6 {[%emt 0:00:06]} Bxf6 {[%emt 0:00:05]} 11. c4 {[%emt 0:00:10]} b4 {[%emt 0:00:09]} 12. Nc2 {[%emt 0:00:05]} a5 {[%emt 0:00:12]} 13. g3 {[%emt 0:00:32]} O-O {[%emt 0:00:27]} 14. Bg2 {[%emt 0:00:41]} Bg5 {[%emt 0:00:30]} 15. O-O {[%emt 0:00:39]} Be6 {[%emt 0:00:27]} 16. Kh1 {[%emt 0:04:29]} Nb8 {[%emt 0:19:29]} 17. f4 {[%emt 0:05:22]} Bh6 {[%emt 0:02:19]} 18. Nce3 {[%emt 0:08:17]} g6 {[%emt 0:14:29]} 19. f5 {[%emt 0:23:10]} Bxd5 {[%emt 0:10:28]} 20. Qxd5 {[%emt 0:06:08]} Ra6 {[%emt 0:09:45]} 21. Ng4 {[%emt 0:01:21]} Qg5 {[%emt 0:00:23]} 22. Bh3 {[%emt 0:15:00]} Bg7 {[%emt 0:14:25]} 23. fxg6 {[%emt 0:05:57]} Qxg6 {[%emt 0:12:31]} 24. Rf3 {[%emt 0:11:15]} Nc6 {[%emt 0:06:09]} 25. Raf1 {[%emt 0:01:39]} Nd4 {[%emt 0:01:37]} 26. R3f2 {[%emt 0:00:42]} Rc6 {[%emt 0:05:38]} 27. Nf6+ {[%emt 0:01:40]} Kh8 {[%emt 0:01:01]} 28. Nd7 {[%emt 0:00:40]} Rg8 {[%emt 0:00:46]} 29. Rxf7 {[%emt 0:01:36]} Qh6 {[%emt 0:01:59]} 30. Kg2 {[%emt 0:01:38]} Qe3 {[%emt 0:00:32]} 31. R1f2 {[%emt 0:04:22]} a4 {[%emt 0:00:26]} 32. Rxg7 {[%emt 0:00:39]} Kxg7 {[%emt 0:00:24]} 33. Qf7+ {[%emt 0:00:07]} Kh6 {[%emt 0:00:39]} 34. Nf6 {[%emt 0:00:48]} 1-0

[Event "Mitropa Online Cup Women 2021"]
[Site "Hybrid"]
[Date "2021.05.04"]
[Round "1.4"]
[White "Juhasz, Barbara"]
[Black "Zimina, Olga"]
[Result "1/2-1/2"]
[ECO "B13"]
[WhiteElo "2211"]
[BlackElo "2354"]
[Annotator "NA"]
[PlyCount "127"]
[EventDate "2021.05.04"]
[EventType "team-tourn"]
[EventCountry "NET"]
[SourceTitle "playchess.com"]
[Source "ChessBase"]
[SourceQuality "1"]
[WhiteTeam "Hungary"]
[BlackTeam "Italy"]
[WhiteTeamCountry "HUN"]
[BlackTeamCountry "ITA"]
[TimeControl "40/5400+30:1800+30"]

1. e4 {[%emt 0:00:00]} c6 {[%emt 0:00:11]} 2. d4 {[%emt 0:00:09]} d5 {[%emt 0:00:10]} 3. exd5 {[%emt 0:00:14]} cxd5 {[%emt 0:00:11]} 4. Bd3 {[%emt 0:00:09]} Nc6 {[%emt 0:00:12]} 5. c3 {[%emt 0:00:11]} Nf6 {[%emt 0:00:08]} 6. Bf4 {[%emt 0:00:28]} Bg4 {[%emt 0:00:11]} 7. Qb3 {[%emt 0:00:12]} Qd7 {[%emt 0:00:13]} 8. Nd2 {[%emt 0:00:23]} e6 {[%emt 0:00:24]} 9. Ngf3 {[%emt 0:00:21]} Bxf3 {[%emt 0:00:15]} 10. Nxf3 {[%emt 0:00:08]} Bd6 {[%emt 0:00:20]} 11. Bxd6 {[%emt 0:01:11]} Qxd6 {[%emt 0:00:20]} 12. O-O {[%emt 0:00:10]} O-O {[%emt 0:00:23]} 13. Rae1 {[%emt 0:01:35]} Qc7 {[%emt 0:00:47]} 14. Qd1 {[%emt 0:02:57]} Rab8 {[%emt 0:08:34]} 15. Qe2 {[%emt 0:00:31]} Rfe8 {[%emt 0:09:14]} 16. Ne5 {[%emt 0:12:56]} Nxe5 {[%emt 0:03:35]} 17. dxe5 {[%emt 0:01:49]} Nd7 {[%emt 0:00:21]} 18. Qh5 {[%emt 0:06:02]} g6 {[%emt 0:03:52]} 19. Qg5 {[%emt 0:20:15]} b5 {[%emt 0:01:05]} 20. a3 {[%emt 0:01:56]} a5 {[%emt 0:00:32]} 21. h4 {[%emt 0:00:49]} Nc5 {[%emt 0:08:35]} 22. Bb1 {[%emt 0:18:29]} Qe7 {[%emt 0:06:21]} 23. Qg4 {[%emt 0:02:58]} Na4 {[%emt 0:05:18]} 24. Re2 {[%emt 0:04:10]} Rec8 {[%emt 0:17:24]} 25. h5 {[%emt 0:05:57]} Kg7 {[%emt 0:02:14]} 26. Rd1 {[%emt 0:03:01]} Rc4 {[%emt 0:06:59]} 27. Rd4 {[%emt 0:01:57]} Rxd4 {[%emt 0:08:21]} 28. Qxd4 {[%emt 0:01:20]} Qg5 {[%emt 0:03:31]} 29. f4 {[%emt 0:00:50]} Qxh5 {[%emt 0:00:38]} 30. Rf2 {[%emt 0:01:08]} Nb6 {[%emt 0:04:54]} 31. Bc2 {[%emt 0:01:14]} Qh4 {[%emt 0:02:18]} 32. Bd3 {[%emt 0:01:56]} Nd7 {[%emt 0:04:49]} 33. Bf1 {[%emt 0:08:57]} Rb7 {[%emt 0:00:27]} 34. Rd2 {[%emt 0:00:50]} Qe7 {[%emt 0:00:22]} 35. b4 {[%emt 0:00:18]} a4 {[%emt 0:01:34]} 36. g4 {[%emt 0:00:32]} Qd8 {[%emt 0:01:16]} 37. Qe3 {[%emt 0:00:36]} Qc7 {[%emt 0:00:53]} 38. Rd4 {[%emt 0:00:51]} Rb8 {[%emt 0:00:13]} 39. Kf2 {[%emt 0:00:40]} Rb7 {[%emt 0:00:59]} 40. Ke1 {[%emt 0:00:00]} g5 {[%emt 0:00:00]} 41. fxg5 {[%emt 0:16:55]} Qxe5 {[%emt 0:01:40]} 42. Kf2 {[%emt 0:00:21]} Qxe3+ {[%emt 0:06:20]} 43. Kxe3 {[%emt 0:00:10]} Kg6 {[%emt 0:03:27]} 44. Rf4 {[%emt 0:03:22]} Nb8 {[%emt 0:02:44]} 45. Kd4 {[%emt 0:05:08]} Kxg5 {[%emt 0:00:32]} 46. Rf2 {[%emt 0:00:06]} Nc6+ {[%emt 0:12:39]} 47. Kc5 {[%emt 0:01:09]} Na7 {[%emt 0:02:07]} 48. Rh2 {[%emt 0:02:04]} Kxg4 {[%emt 0:02:41]} 49. Rxh7 {[%emt 0:00:09]} Kg5 {[%emt 0:00:39]} 50. Be2 {[%emt 0:02:28]} Kg6 {[%emt 0:00:09]} 51. Bd3+ {[%emt 0:00:37]} Kf6 {[%emt 0:00:04]} 52. Be2 {[%emt 0:00:36]} Ke7 {[%emt 0:01:27]} 53. Bh5 {[%emt 0:01:46]} Kf6 {[%emt 0:01:40]} 54. Be2 {[%emt 0:00:05]} Ke5 {[%emt 0:00:43]} 55. Rh5+ {[%emt 0:01:38]} f5 {[%emt 0:00:07]} 56. Rh8 {[%emt 0:00:11]} Ke4 {[%emt 0:00:20]} 57. Rh3 {[%emt 0:00:13]} Ke5 {[%emt 0:01:59]} 58. Rh6 {[%emt 0:00:57]} f4 {[%emt 0:00:43]} 59. Bg4 {[%emt 0:01:04]} Re7 {[%emt 0:00:12]} 60. Kb6 {[%emt 0:00:09]} Kd6 {[%emt 0:00:41]} 61. Rf6 {[%emt 0:00:36]} Ke5 {[%emt 0:00:07]} 62. Rh6 {[%emt 0:00:02]} Kd6 {[%emt 0:01:15]} 63. Rf6 {[%emt 0:00:05]} Ke5 {[%emt 0:00:21]} 64. Rh6 {[%emt 0:00:03]} 1/2-1/2

[Event "Mitropa Online Cup Women 2021"]
[Site "Hybrid"]
[Date "2021.05.04"]
[Round "1.4"]
[White "Karacsonyi, Kata"]
[Black "Gueci, Tea"]
[Result "1/2-1/2"]
[ECO "B90"]
[WhiteElo "2138"]
[BlackElo "2204"]
[Annotator "NA"]
[PlyCount "60"]
[EventDate "2021.05.04"]
[EventType "team-tourn"]
[EventCountry "NET"]
[SourceTitle "playchess.com"]
[Source "ChessBase"]
[SourceQuality "1"]
[WhiteTeam "Hungary"]
[BlackTeam "Italy"]
[WhiteTeamCountry "HUN"]
[BlackTeamCountry "ITA"]
[TimeControl "40/5400+30:1800+30"]

1. e4 {[%emt 0:00:00]} c5 {[%emt 0:00:05]} 2. Nf3 {[%emt 0:00:06]} d6 {[%emt 0:00:05]} 3. d4 {[%emt 0:00:04]} cxd4 {[%emt 0:00:09]} 4. Nxd4 {[%emt 0:00:06]} Nf6 {[%emt 0:00:06]} 5. Nc3 {[%emt 0:00:05]} a6 {[%emt 0:00:07]} 6. h3 {[%emt 0:00:10]} e5 {[%emt 0:00:07]} 7. Nb3 {[%emt 0:00:05]} Be7 {[%emt 0:00:58]} 8. g4 {[%emt 0:00:14]} h6 {[%emt 0:00:43]} 9. Bg2 {[%emt 0:03:12]} Be6 {[%emt 0:07:41]} 10. f4 {[%emt 0:05:47]} exf4 {[%emt 0:09:23]} 11. Bxf4 {[%emt 0:00:43]} Nc6 {[%emt 0:02:43]} 12. Qd2 {[%emt 0:14:58]} Ne5 {[%emt 0:07:37]} 13. O-O-O {[%emt 0:10:22]} Rc8 {[%emt 0:14:18]} 14. Qf2 {[%emt 0:27:24]} Nfd7 {[%emt 0:06:53]} 15. Nd5 {[%emt 0:05:59]} Bxd5 {[%emt 0:08:24]} 16. Rxd5 {[%emt 0:01:45]} Nb6 {[%emt 0:03:03]} 17. Rdd1 {[%emt 0:01:58]} Nbc4 {[%emt 0:03:15]} 18. Bxe5 {[%emt 0:10:12]} Nxe5 {[%emt 0:00:38]} 19. Kb1 {[%emt 0:01:05]} O-O {[%emt 0:02:40]} 20. Rd5 {[%emt 0:03:39]} Qc7 {[%emt 0:04:48]} 21. Rhd1 {[%emt 0:01:26]} Rfd8 {[%emt 0:03:21]} 22. Bf1 {[%emt 0:01:30]} Nc6 {[%emt 0:04:48]} 23. c3 {[%emt 0:01:59]} b5 {[%emt 0:02:47]} 24. Nd4 {[%emt 0:01:25]} Nxd4 {[%emt 0:04:39]} 25. Qxd4 {[%emt 0:00:55]} Bf6 {[%emt 0:00:30]} 26. Qd2 {[%emt 0:01:43]} Be5 {[%emt 0:03:06]} 27. g5 {[%emt 0:01:38]} hxg5 {[%emt 0:01:27]} 28. Qxg5 {[%emt 0:00:13]} Bf6 {[%emt 0:00:21]} 29. Qd2 {[%emt 0:00:16]} Be5 {[%emt 0:02:28]} 30. h4 {[%emt 0:00:34]} Qe7 {[%emt 0:00:18]} 1/2-1/2